fUSD/lending_fUSD_20241202
["ID","MTS","AMOUNT","RATE_DAILY","PERIOD"]
[343937382,1733103046099,-762.07101715,7.988e-05,2]
[343937580,1733103062635,200.0,7e-05,2]
[343937581,1733103064219,500.0,7.1e-05,2]
[343937582,1733103206655,956.3,7.091e-05,2]
[343937583,1733103304541,250.0,7.072e-05,2]
[343937584,1733103328161,509.95,7.06e-05,2]
[343937585,1733103436844,150.0,7.99e-06,2]
[343937586,1733103440858,1500.0,7.063e-05,2]
[343937587,1733103499045,508.84,0.00025,120]
[343937591,1733103800482,445.62,7.015e-05,2]
[343937594,1733103907586,492.11,7.047e-05,2]
[343937595,1733103935550,5580.09,7.131e-05,2]
[343937608,1733104169705,1500.0,7.117e-05,2]
[343937609,1733104169773,200.0,7.162e-05,2]
[343937643,1733104232527,-20800.39541809,7.199e-05,2]
[343937644,1733104232698,-372.97646653,7.199e-05,2]
[343937645,1733104232715,-3029.29937368,7.199e-05,2]
[343937646,1733104232729,-532.17578952,7.199e-05,2]
[343937647,1733104232742,-4227.922,7.233e-05,2]
[343937648,1733104232756,-150.0,7.562e-05,2]
[343937649,1733104232769,-150.0,7.599e-05,2]
[343937650,1733104232782,-151.39,7.6e-05,2]
[343937651,1733104232794,-791.86,7.6e-05,2]
[343937652,1733104232807,-735.62,7.6e-05,2]
[343937653,1733104232819,-973.53,7.6e-05,2]
[343937654,1733104232832,-881.72,7.6e-05,2]
[343937655,1733104232845,-973.53,7.6e-05,2]
[343937656,1733104232857,-767.42,7.6e-05,2]
[343937657,1733104232870,-767.42,7.6e-05,2]
[343937658,1733104232882,-973.53,7.6e-05,2]
[343937659,1733104232899,-1000.0,7.7e-05,2]
[343937660,1733104232912,-1097.90307304,7.8e-05,2]
[343937661,1733104232925,-1000.0,7.8e-05,2]
[343937662,1733104232939,-669.8100697,7.887e-05,2]
[343937663,1733104232953,-2500.0,7.888e-05,2]
[343937664,1733104232966,-492.11,7.928e-05,2]
[343937665,1733104232979,-509.95,7.943e-05,2]
[343937666,1733104232992,-8976.57011497,7.956e-05,2]
[343937667,1733104233005,-200.0,7.957e-05,2]
[343937668,1733104233017,-1261.0,7.957e-05,2]
[343937669,1733104233031,-566.0,7.957e-05,2]
[343937670,1733104233044,-256.731,7.957e-05,2]
[343937671,1733104233061,-2002.0,7.957e-05,2]
[343937672,1733104233076,-1902.196,7.957e-05,2]
[343937673,1733104233096,-563.0,7.957e-05,2]
[343937674,1733104233120,-3750.925,7.957e-05,2]
[343937675,1733104233135,-1252.0,7.957e-05,2]
[343937676,1733104233152,-3527.0,7.957e-05,2]
[343937677,1733104233166,-982.138,7.957e-05,2]
[343937678,1733104233180,-3865.05122989,7.957e-05,2]
[343937679,1733104233199,-9841.94877011,7.957e-05,2]
[343937680,1733104233211,-1166.0,7.957e-05,2]
[343937681,1733104233224,-5962.0,7.957e-05,2]
[343937682,1733104233238,-150.0,7.957e-05,2]
[343937683,1733104233251,-150.0,7.957e-05,2]
[343937684,1733104233266,-200.0,7.963e-05,2]
[343937685,1733104233280,-200.0,7.964e-05,2]
[343937686,1733104233293,-200.0,7.964e-05,2]
[343937687,1733104233307,-200.0,7.972e-05,2]
[343937688,1733104233321,-371.35490231,7.973e-05,2]
[343937689,1733104233335,-159.76522956,7.973e-05,2]
[343937690,1733104233347,-502.43734541,7.973e-05,2]
[343937691,1733104233360,-203.49452105,7.973e-05,2]
[343937692,1733104233373,-150.0,7.987e-05,2]
[343937693,1733104233387,-150.0,7.987e-05,2]
[343937694,1733104233403,-150.0,7.987e-05,2]
[343937695,1733104233417,-150.0,7.987e-05,2]
[343937696,1733104233433,-150.0,7.987e-05,2]
[343937697,1733104233448,-150.0,7.987e-05,2]
[343937698,1733104233463,-150.0,7.987e-05,2]
[343937699,1733104233476,-150.0,7.987e-05,2]
[343937700,1733104233489,-150.0,7.987e-05,2]
[343937701,1733104233503,-150.0,7.987e-05,2]
[343937702,1733104233517,-150.0,7.987e-05,2]
[343937703,1733104233531,-150.0,7.987e-05,2]
[343937704,1733104233544,-150.0,7.987e-05,2]
[343937705,1733104233557,-150.0,7.987e-05,2]
[343937706,1733104233571,-150.0,7.987e-05,2]
[343937707,1733104233587,-150.0,7.987e-05,2]
[343937708,1733104233600,-150.0,7.987e-05,2]
[343937709,1733104233615,-150.0,7.987e-05,2]
[343937710,1733104233627,-147392.99913885,7.988e-05,2]
[343937711,1733104237933,-1097.0,7.957e-05,2]
[343937712,1733104237941,-3624.87810172,7.988e-05,2]
[343937713,1733104237952,-5671.39939854,7.988e-05,2]
[343937718,1733104238158,-2719.32,7.988e-05,2]
[343937719,1733104238169,-45404.59723267,7.988e-05,2]
[343937720,1733104238182,-7541.19664349,7.988e-05,2]
[343937722,1733104240023,-27073.53992802,7.988e-05,2]
[343937733,1733104240292,-488.7,7.988e-05,2]
[343937734,1733104240304,-10923.05224821,7.988e-05,2]
[343937735,1733104240315,-40788.70587406,7.988e-05,2]
[343937736,1733104240476,-711.65600006,7.988e-05,2]
[343937759,1733104243405,-12138.08300137,7.988e-05,2]
[343937760,1733104243461,-401.03313773,7.988e-05,2]
[343937762,1733104243473,-1683.0,7.988e-05,2]
[343937763,1733104243485,-27415.53349686,7.988e-05,2]
[343937764,1733104243497,-397.29288428,7.988e-05,2]
[343937765,1733104243534,-500.0,7.973e-05,2]
[343937766,1733104243545,-282.55999991,7.988e-05,2]
[343937767,1733104243603,-9091.0304,7.988e-05,2]
[343937768,1733104243615,-3221.32674,7.988e-05,2]
[343937769,1733104243626,-1152.30094,7.988e-05,2]
[343937770,1733104243638,-447.22,7.988e-05,2]
[343937771,1733104243651,-569.4041198,7.988e-05,2]
[343937772,1733104243664,-2730.8326744,7.988e-05,2]
[343937773,1733104243692,-1683.6295738,7.988e-05,2]
[343937774,1733104243704,-2292.98664811,7.988e-05,2]
[343937775,1733104243716,-617.84382592,7.988e-05,2]
[343937776,1733104243728,-44202.38113587,7.988e-05,2]
[343937777,1733104243740,-4511.45634596,7.988e-05,2]
[343937779,1733104243752,-4212.49652521,7.988e-05,2]
[343937782,1733104243764,-21527.28508074,7.988e-05,2]
[343937990,1733104245889,-150.371,7.957e-05,2]
[343937992,1733104245898,-9466.31201787,7.988e-05,2]
[343937994,1733104245912,-63443.56161903,7.988e-05,2]
[343938012,1733104246073,-4906.28891041,7.988e-05,2]
[343938014,1733104246085,-11975.0,7.988e-05,2]
[343938016,1733104246096,-2397.62385,7.988e-05,2]
[343938018,1733104246111,-362.9908665,7.988e-05,2]
[343938036,1733104246280,-2331.65058776,7.988e-05,2]
[343938038,1733104246292,-670.68,7.988e-05,2]
[343939620,1733104327004,700.0,0.00025,120]
[343939622,1733104588571,1484.36,7.111e-05,2]
[343939623,1733104606077,800.0,0.00025,120]
[343939624,1733104624374,400.0,0.00025,120]
[343939625,1733104705696,400.0,7e-05,2]
[343939626,1733104707722,900.0,7.1e-05,2]
[343939627,1733104722567,3436.26,6.995e-05,2]
[343939628,1733104799118,193.13,6.965e-05,2]
[343939629,1733104979733,1500.0,6.996e-05,2]
[343939634,1733105097041,-3000.0,7.9e-05,4]
[343939635,1733105103668,386.65748912,0.00025,120]
[343939636,1733105103772,164.68393557,0.00025,120]
[343939637,1733105171902,305.97,7.026e-05,2]
[343939638,1733105175167,-1234.35107133,7.9e-05,4]
[343939639,1733105175202,-225.9927945,8.4e-05,10]
[343939640,1733105175236,-225.9927945,9e-05,10]
[343939641,1733105175262,-152.0,9.153e-05,4]
[343939642,1733105175284,-324.26704661,9.2e-05,5]
[343939643,1733105175316,-152.0,9.543e-05,5]
[343939644,1733105175352,-152.0,9.932e-05,6]
[343939645,1733105175386,-152.0,0.00010321,7]
[343939646,1733105175413,-152.0,0.00010711,8]
[343939647,1733105175438,-1000.0,0.00010924,10]
[343939648,1733105175464,-152.0,0.000111,9]
[343939649,1733105175490,-277.11615944,0.000111,5]
[343939650,1733105175514,-3371.15696692,0.00012,10]
[343939651,1733105175653,-2429.1231667,0.000133,7]
[343939652,1733105233153,400.0,7e-05,2]
[343939653,1733105236675,800.0,7.1e-05,2]
[343939662,1733105432147,-300.0,7.199e-05,2]
[343939663,1733105432157,-218.74399125,7.2e-05,2]
[343939664,1733105432166,-584.8131435,7.2e-05,2]
[343939665,1733105432178,-615.1868565,7.2e-05,2]
[343939667,1733105432188,-2915.04814724,7.2e-05,2]
[343939670,1733105432199,-1000.398,7.2e-05,2]
[343939672,1733105432210,-528.53485607,7.2e-05,2]
[343939674,1733105432221,-280797.45796862,7.2e-05,2]
[343939675,1733105432232,-320772.81394319,7.2e-05,2]
[343939676,1733105432367,-1574.5839903,7.2e-05,2]
[343939677,1733105432379,-621.4327704,7.2e-05,2]
[343939678,1733105432391,-12571.29945992,7.2e-05,2]
[343939679,1733105432403,-472.9465845,7.2e-05,2]
[343939680,1733105438242,-3952.27791306,7.2e-05,2]
[343939683,1733105438254,-26143.49230271,7.2e-05,2]
[343939685,1733105438266,-1852.98993904,7.2e-05,2]
[343939687,1733105438278,-17705.66698637,7.2e-05,2]
[343939688,1733105438289,-16711.27861942,7.2e-05,2]
[343939689,1733105438300,-2991.21372904,7.2e-05,2]
[343939691,1733105438472,-22058.1564,7.2e-05,2]
[343939856,1733105440135,-1261.04503495,7.2e-05,2]
[343939858,1733105440147,-936.02458217,7.2e-05,2]
[343939860,1733105440156,-851.53346945,7.214e-05,2]
[343939863,1733105440167,-1383.89329523,7.214e-05,2]
[343939865,1733105440179,-2170.6451043,7.214e-05,2]
[343939867,1733105440188,-398.76,7.214e-05,2]
[343939868,1733105440198,-1600.0,7.3e-05,2]
[343939869,1733105440207,-5535.0,7.371e-05,2]
[343939870,1733105440216,-2000.0,7.4e-05,2]
[343939871,1733105440226,-400.0,7.5e-05,2]
[343939872,1733105440235,-400.0,7.6e-05,2]
[343939873,1733105440244,-1004.0,7.6e-05,2]
[343939874,1733105440254,-2398.7776,7.6e-05,2]
[343939875,1733105440263,-400.0,7.7e-05,2]
[343939876,1733105440272,-150.0,7.799e-05,2]
[343939877,1733105440282,-6763.1588,7.8e-05,2]
[343939878,1733105440291,-2500.0,7.8e-05,2]
[343939879,1733105440301,-1563.2216,7.8e-05,2]
[343939880,1733105440311,-302.3,7.8e-05,2]
[343939881,1733105440320,-400.0,7.8e-05,2]
[343939882,1733105440329,-432.014417,7.899e-05,2]
[343939883,1733105440339,-1000.0,7.899e-05,2]
[343939884,1733105440349,-3583.856,7.899e-05,2]
[343939885,1733105440360,-732.0,7.9e-05,2]
[343939886,1733105440369,-1348.0,7.9e-05,2]
[343939887,1733105440379,-305.97,7.904e-05,2]
[343939888,1733105440388,-5962.0,7.909e-05,2]
[343939889,1733105440397,-13707.0,7.909e-05,2]
[343939890,1733105440407,-150.0,7.909e-05,2]
[343939891,1733105440416,-1166.0,7.909e-05,2]
[343939892,1733105440426,-420.0,7.919e-05,2]
[343939893,1733105440435,-1641.138617,7.945e-05,2]
[343939894,1733105440444,-150.0,7.957e-05,2]
[343939895,1733105440455,-150.0,7.957e-05,2]
[343939896,1733105440466,-150.212,7.957e-05,2]
[343939897,1733105440476,-150.339,7.957e-05,2]
[343939898,1733105440486,-566.0,7.957e-05,2]
[343939899,1733105440495,-1261.0,7.957e-05,2]
[343939900,1733105440506,-256.731,7.957e-05,2]
[343939901,1733105440516,-2002.0,7.957e-05,2]
[343939902,1733105440525,-563.0,7.957e-05,2]
[343939903,1733105440535,-1893.0,7.957e-05,2]
[343939904,1733105440548,-345.142,7.957e-05,2]
[343939905,1733105440558,-3527.0,7.957e-05,2]
[343939906,1733105440567,-976.0,7.957e-05,2]
[343939907,1733105440577,-3579.32880644,7.964e-05,2]
[343939908,1733105440587,-3579.32880644,7.965e-05,2]
[343939909,1733105440596,-3579.32880644,7.967e-05,2]
[343939910,1733105440607,-7147.95295353,7.967e-05,2]
[343939911,1733105440617,-3579.32880644,7.969e-05,2]
[343939912,1733105440627,-3579.32880644,7.969e-05,2]
[343939913,1733105440637,-7147.95295353,7.969e-05,2]
[343939914,1733105440647,-7147.95295353,7.97e-05,2]
[343939915,1733105440656,-7147.95295353,7.971e-05,2]
[343939916,1733105440665,-1415.81438652,7.971e-05,2]
[343939917,1733105440675,-1415.81438652,7.971e-05,2]
[343939918,1733105440685,-2152.13867441,7.971e-05,2]
[343939919,1733105440695,-1415.81438652,7.972e-05,2]
[343939920,1733105440704,-1631.0,7.973e-05,2]
[343939921,1733105440714,-510.4775197,7.973e-05,2]
[343939922,1733105440723,-159.19365161,7.973e-05,2]
[343939923,1733105440732,-500.61515914,7.973e-05,2]
[343939924,1733105440742,-500.98612863,7.973e-05,2]
[343939925,1733105440751,-500.0,7.973e-05,2]
[343939926,1733105440761,-1415.81438652,7.973e-05,2]
[343939927,1733105440771,-1415.81438652,7.974e-05,2]
[343939928,1733105440780,-1415.81438652,7.977e-05,2]
[343939929,1733105440790,-7147.95295353,7.977e-05,2]
[343939930,1733105440800,-7147.95295353,7.978e-05,2]
[343939931,1733105440810,-3579.32880644,7.978e-05,2]
[343939932,1733105440819,-321.15385997,7.987e-05,2]
[343939933,1733105440829,-172429.61323052,7.988e-05,2]
[343939934,1733105440838,-2020.71,7.99e-05,2]
[343939935,1733105440848,-48461.0,7.99e-05,2]
[343939936,1733105440857,-1652.9209882,7.99e-05,2]
[343939937,1733105440866,-761.5586772,7.99e-05,2]
[343939938,1733105440876,-1479.339905,7.995e-05,2]
[343939939,1733105440885,-1305.7588219,7.995e-05,2]
[343939940,1733105440895,-681.5837837,7.995e-05,2]
[343939941,1733105440904,-601.6088901,7.995e-05,2]
[343939942,1733105440913,-35816.34983925,7.998e-05,2]
[343939943,1733105440922,-764.31,7.998e-05,2]
[343939944,1733105440931,-2000.0,7.999e-05,2]
[343939945,1733105440941,-2000.0,7.999e-05,2]
[343939946,1733105440950,-2957.53066988,7.999e-05,2]
[343939947,1733105440959,-343.45136003,7.999e-05,2]
[343939948,1733105440969,-2017.6212,7.999e-05,2]
[343939949,1733105440979,-1002.05922769,7.999e-05,2]
[343939950,1733105440988,-1002.05922769,7.999e-05,2]
[343939951,1733105440997,-1002.05922769,7.999e-05,2]
[343939952,1733105441007,-1002.0592277,7.999e-05,2]
[343939953,1733105441016,-3507.22,7.999e-05,2]
[343939954,1733105441026,-1791111.88035157,8e-05,2]
[343939955,1733105441039,-343.90323346,8e-05,2]
[343939956,1733105441555,-300.0,8e-05,2]
[343939957,1733105441567,-722.19529931,8e-05,2]
[343939958,1733105441579,-335.5550025,8e-05,2]
[343939959,1733105441591,-251.71138737,8e-05,2]
[343939968,1733105443156,-621.51461131,8e-05,2]
[343939969,1733105443168,-532.35328105,8e-05,2]
[343939970,1733105443179,-6740.0,8e-05,2]
[343939971,1733105443191,-4407.25981861,8e-05,2]
[343939973,1733105443202,-629.25891876,8e-05,2]
[343939990,1733105443352,-3425.34693333,8e-05,2]
[343939991,1733105443364,-5629.0223937,8e-05,2]
[343939992,1733105443382,-21533.27470492,8e-05,2]
[343939993,1733105443399,-10377.31968114,8e-05,2]
[343939994,1733105443410,-498.75341358,8e-05,2]
[343939995,1733105443422,-2693.56481546,8e-05,2]
[343939996,1733105443434,-6855.90067227,8e-05,2]
[343939997,1733105443544,-1059.15921352,7.919e-05,2]
[343939998,1733105443558,-37.84078648,7.919e-05,2]
[343939999,1733105443567,-657.25500987,8e-05,2]
[343940000,1733105443581,-5242.74940921,8e-05,2]
[343940001,1733105443592,-1426.56492949,8e-05,2]
[343940002,1733105443605,-573.55446162,8e-05,2]
[343940003,1733105443860,-6971.48406836,8e-05,2]
[343940006,1733105443882,-721.76368082,8e-05,2]
[343940008,1733105443893,-11761.568,8e-05,2]
[343940048,1733105447211,-1865.90015416,8e-05,2]
[343940049,1733105447222,-31525.54817987,8e-05,2]
[343940050,1733105447254,-14889.6967542,8e-05,2]
[343940051,1733105447265,-1644.15644672,8e-05,2]
[343940052,1733105447277,-3187.19048631,8e-05,2]
[343940053,1733105447288,-5926.27291896,8e-05,2]
[343940054,1733105447300,-1303.17693193,8e-05,2]
[343940055,1733105447311,-3819.1264969,8e-05,2]
[343940056,1733105447322,-1000.0,8e-05,2]
[343940057,1733105447333,-2414.12460858,8e-05,2]
[343940058,1733105447344,-7217.79607995,8e-05,2]
[343940059,1733105447355,-13646.51782045,8e-05,2]
[343940060,1733105447369,-378.61629365,8e-05,2]
[343940061,1733105447381,-326.727,8e-05,2]
[343940062,1733105447394,-760.34378302,8e-05,2]
[343940063,1733105447405,-6979.51788928,8e-05,2]
[343940064,1733105447417,-4280.54195279,8e-05,2]
[343940065,1733105447428,-479.75004362,8e-05,2]
[343940066,1733105447439,-2803.72749392,8e-05,2]
[343940067,1733105447450,-10739.77915991,8e-05,2]
[343940068,1733105447464,-8666.71524907,8e-05,2]
[343940069,1733105447476,-602.0,8e-05,2]
[343940070,1733105447487,-8987.6809423,8e-05,2]
[343940071,1733105447499,-2391.39684,8e-05,2]
[343940072,1733105447510,-3157.60375,8e-05,2]
[343940073,1733105447521,-463.49596685,8e-05,2]
[343940074,1733105447532,-324.95834368,8e-05,2]
[343940075,1733105447589,-500.0,8e-05,2]
[343940076,1733105447601,-574.803395,8e-05,2]
[343940077,1733105447612,-467.062655,8e-05,2]
[343940078,1733105447625,-3908.48,8e-05,2]
[343940079,1733105447638,-2238.27476078,8e-05,2]
[343940080,1733105447649,-2380.0,8e-05,2]
[343940081,1733105447892,-2049.27708235,8e-05,2]
[343940082,1733105447903,-520.84736323,8e-05,2]
[343940083,1733105447914,-493.09011844,8e-05,2]
[343940084,1733105447925,-1437.01556051,8e-05,2]
[343940085,1733105474234,2500.0,7.1e-05,2]
[343940090,1733105966509,429.31,7.16e-05,2]
[343940091,1733106080473,200.0,7.124e-05,30]
[343940092,1733106080525,200.0,7.124e-05,30]
[343940093,1733106080583,200.0,7.124e-05,30]
[343940094,1733106080639,200.0,7.124e-05,30]
[343940095,1733106080702,200.0,7.124e-05,30]
[343940096,1733106092875,787.68,7.066e-05,2]
[343940097,1733106104044,1361.89,0.00025,120]
[343940098,1733106230191,23900.0,7.064e-05,2]
[343940099,1733106235125,9000.0,7e-05,2]
[343940100,1733106252307,250.0,7.134e-05,2]
[343940103,1733106318801,200.0,7.159e-05,2]
[343940117,1733106383601,200.0,7.159e-05,2]
[343940119,1733106455842,1758.16,7.112e-05,2]
[343940129,1733106533637,200.0,7.062e-05,30]
[343940130,1733106533672,200.0,7.062e-05,30]
[343940131,1733106533707,200.0,7.062e-05,30]
[343940132,1733106533748,200.0,7.062e-05,30]
[343940133,1733106533785,200.0,7.062e-05,30]
[343940134,1733106540277,1500.0,7.143e-05,2]
[343940151,1733106632415,-319.0,7.165e-05,2]
[343940152,1733106632425,-163.3,7.194e-05,2]
[343940153,1733106632435,-500.0,7.2e-05,2]
[343940154,1733106632445,-533.32,7.217e-05,2]
[343940155,1733106632455,-583.82,7.284e-05,2]
[343940156,1733106632464,-497.41,7.359e-05,2]
[343940157,1733106632473,-500.0,7.5e-05,3]
[343940158,1733106632482,-500.0,7.5e-05,5]
[343940159,1733106632492,-1000.0,7.7e-05,2]
[343940160,1733106632501,-300.0,7.899e-05,2]
[343940161,1733106632511,-150.0,7.899e-05,2]
[343940162,1733106632520,-692.16934796,7.9e-05,2]
[343940163,1733106632532,-740.34872213,7.9e-05,2]
[343940164,1733106632544,-967.16653187,7.9e-05,2]
[343940165,1733106632553,-2000.0,7.9e-05,2]
[343940166,1733106632564,-2399.68460196,7.9e-05,2]
[343940167,1733106632574,-2000.0,7.9e-05,2]
[343940168,1733106632584,-2399.68460196,7.9e-05,2]
[343940169,1733106632594,-2000.0,7.9e-05,2]
[343940170,1733106632603,-2399.68460196,7.9e-05,2]
[343940171,1733106632613,-2000.0,7.9e-05,2]
[343940172,1733106632622,-2017.6212,7.9e-05,2]
[343940173,1733106632632,-2017.6212,7.9e-05,2]
[343940174,1733106632641,-2017.6212,7.9e-05,2]
[343940175,1733106632652,-2000.0,7.9e-05,2]
[343940176,1733106632661,-1766.97354467,7.9e-05,2]
[343940177,1733106632673,-233.02645533,7.9e-05,2]
[343940178,1733106632682,-2399.68460196,7.9e-05,2]
[343940179,1733106632691,-2000.0,7.9e-05,2]
[343940180,1733106632701,-2000.0,7.9e-05,2]
[343940181,1733106632710,-2000.0,7.9e-05,2]
[343940182,1733106632719,-2000.0,7.9e-05,2]
[343940183,1733106632729,-2500.0,7.9e-05,2]
[343940184,1733106632738,-1584.75530205,7.92e-05,2]
[343940185,1733106632748,-291.0,7.973e-05,2]
[343940186,1733106632758,-1024.8545,7.973e-05,2]
[343940187,1733106632767,-502.7601981,7.973e-05,2]
[343940188,1733106632777,-500.0,7.973e-05,2]
[343940189,1733106632786,-500.0,7.973e-05,2]
[343940190,1733106632795,-200.0,7.978e-05,2]
[343940191,1733106632805,-2867.085,7.979e-05,2]
[343940192,1733106632814,-70168.63040596,7.988e-05,2]
[343940193,1733106632823,-1002.40665946,7.998e-05,2]
[343940194,1733106632831,-150.0,7.998e-05,2]
[343940195,1733106632839,-150.0,7.998e-05,2]
[343940196,1733106632849,-150.0,7.998e-05,2]
[343940197,1733106632856,-150.0,7.998e-05,2]
[343940199,1733106632868,-150.0,7.998e-05,2]
[343940201,1733106632877,-150.0,7.998e-05,2]
[343940202,1733106632886,-150.0,7.998e-05,2]
[343940203,1733106632895,-150.0,7.998e-05,2]
[343940204,1733106632907,-150.0,7.998e-05,2]
[343940205,1733106632916,-150.0,7.998e-05,2]
[343940206,1733106632926,-150.0,7.998e-05,2]
[343940207,1733106632936,-150.0,7.998e-05,2]
[343940208,1733106632946,-1893.0,7.999e-05,2]
[343940209,1733106632955,-563.0,7.999e-05,2]
[343940210,1733106632964,-982.138,7.999e-05,2]
[343940211,1733106632974,-3527.0,7.999e-05,2]
[343940212,1733106632983,-1097.0,7.999e-05,2]
[343940213,1733106632992,-5962.0,7.999e-05,2]
[343940215,1733106633001,-1261.0,7.999e-05,2]
[343940216,1733106633010,-566.0,7.999e-05,2]
[343940217,1733106633019,-634.306,7.999e-05,2]
[343940218,1733106633029,-151.392,7.999e-05,2]
[343940219,1733106633039,-171.72568002,7.999e-05,2]
[343940220,1733106633049,-2399.68460196,7.999e-05,2]
[343940221,1733106633059,-2000.0,7.999e-05,2]
[343940222,1733106633069,-732.46,7.999e-05,2]
[343940223,1733106633079,-3361.08,7.999e-05,2]
[343940224,1733106633089,-224.80770198,7.999e-05,2]
[343940225,1733106633099,-346918.77809535,8e-05,2]
[343940226,1733106633500,-2209.88196035,8e-05,2]
[343940227,1733106633512,-4580.14316661,8e-05,2]
[343940235,1733106641680,-405.99981085,7.973e-05,2]
[343940236,1733106641696,-261.594,7.999e-05,2]
[343940237,1733106641705,-1641.58145447,8e-05,2]
[343940238,1733106641717,-1008.49991105,8e-05,2]
[343940239,1733106641728,-333.37312191,8e-05,2]
[343940240,1733106641740,-3260.36295265,8e-05,2]
[343940241,1733106641751,-7774.89925375,8e-05,2]
[343940242,1733106641763,-284046.64673914,8e-05,2]
[343940243,1733106641774,-11731.79855,8e-05,2]
[343940244,1733106641786,-5475.06322101,8e-05,2]
[343940245,1733106641799,-1192.7749298,8e-05,2]
[343940246,1733106641810,-684.3000014,8e-05,2]
[343940247,1733106641822,-1560.46913194,8e-05,2]
[343940248,1733106641837,-393.01182328,8e-05,2]
[343940249,1733106642151,-36120.0000003,8e-05,2]
[343940268,1733106644215,-9426.5893844,7.999e-05,2]
[343940269,1733106644262,-4280.4106156,7.999e-05,2]
[343940270,1733106644271,-171.72568001,7.999e-05,2]
[343940271,1733106644281,-1397.59569879,8e-05,2]
[343940272,1733106644293,-317.436,8e-05,2]
[343940273,1733106644304,-6556.88371183,8e-05,2]
[343940274,1733106644359,-4891.0,8e-05,2]
[343940275,1733106644370,-40858.18856,8e-05,2]
[343940276,1733106644381,-474.9999999,8e-05,2]
[343940277,1733106644392,-39154.13000407,8e-05,2]
[343940278,1733106644403,-3937.5329536,8e-05,2]
[343940279,1733106644418,-5972.76386267,8e-05,2]
[343940280,1733106644430,-14360.30219875,8e-05,2]
[343940281,1733106644457,-920.05418224,8e-05,2]
[343940282,1733106644470,-4197.11988147,8e-05,2]
[343940291,1733106646392,-3198.3248635,8e-05,2]
[343940298,1733106646724,-18563.5,8e-05,2]
[343940304,1733106646779,-450.23930692,8e-05,2]
[343940307,1733106646834,-1448.94570952,8e-05,2]
[343940308,1733106646846,-1155.4404,8e-05,2]
[343940309,1733106646857,-608.717945,8e-05,2]
[343940310,1733106646871,-487.61748896,8e-05,2]
[343940314,1733106667946,200.0,7.96e-05,30]
[343940315,1733106667991,200.0,7.96e-05,30]
[343940316,1733106668045,200.0,7.96e-05,30]
[343940317,1733106668098,200.0,7.96e-05,30]
[343940318,1733106668134,200.0,7.96e-05,30]
[343940328,1733106796334,200.0,7.92e-05,30]
[343940329,1733106796373,200.0,7.92e-05,30]
[343940330,1733106796420,200.0,7.92e-05,30]
[343940331,1733106796454,200.0,7.92e-05,30]
[343940332,1733106796487,200.0,7.92e-05,30]
[343940333,1733106860081,2871.61894,0.00025,120]
[343940338,1733107170760,2196.0,0.00025,120]
[343940339,1733107502372,300.0,7.146e-05,2]
[343940340,1733107522311,23900.0,7.106e-05,2]
[343940341,1733107543016,250.0,7.134e-05,2]
[343940342,1733107556224,200.0,7.098e-05,30]
[343940343,1733107556567,200.0,7.098e-05,30]
[343940344,1733107556912,200.0,7.098e-05,30]
[343940345,1733107600697,2429.0,0.00025,120]
[343940365,1733107832677,-200.0,7.179e-05,2]
[343940366,1733107832686,-1703.25216808,7.183e-05,2]
[343940367,1733107832698,-296.74783192,7.183e-05,2]
[343940368,1733107832708,-252.38,7.197e-05,2]
[343940369,1733107832717,-43.23422953,7.208e-05,2]
[343940370,1733107832728,-712.02367317,7.208e-05,2]
[343940371,1733107832893,-1049.6120973,7.208e-05,2]
[343940372,1733107832904,-525.33,7.217e-05,2]
[343940373,1733107832913,-1354.52,7.262e-05,2]
[343940374,1733107832923,-346.87,7.311e-05,2]
[343940375,1733107832932,-150.0,7.397e-05,2]
[343940376,1733107832942,-500.0,7.507e-05,2]
[343940377,1733107832952,-5988.91805761,7.9e-05,2]
[343940378,1733107832963,-894.38164469,7.9e-05,2]
[343940379,1733107832974,-741.8811006,7.9e-05,2]
[343940380,1733107832985,-478.31588386,7.9e-05,2]
[343940381,1733107832997,-2778.24441209,7.9e-05,2]
[343940382,1733107833008,-9435.78553198,7.9e-05,2]
[343940383,1733107833093,-644.09052716,7.9e-05,2]
[343940386,1733107838438,-902.63081299,7.9e-05,2]
[343940388,1733107838664,-1326.00665102,7.9e-05,2]
[343940389,1733107838674,-1570.38851366,7.9e-05,2]